fUST/lending_fUST_20250829
["ID","MTS","AMOUNT","RATE_DAILY","PERIOD"]
[381995373,1756469442840,-425.57542551,0.00036,7]
[381995375,1756469442850,-168.0,0.00036026,2]
[381995377,1756469442859,-165.991663,0.00036084,2]
[381995379,1756469442868,-499.3,0.00036146,7]
[381995381,1756469442877,-500.0,0.00036152,7]
[381995384,1756469442887,-160.0,0.00036164,3]
[381995386,1756469442897,-160.2,0.000362,7]
[381995388,1756469442907,-1000.0,0.00036262,2]
[381995390,1756469442917,-161.2295834,0.00036523,30]
[381995392,1756469442926,-153.0,0.00036523,30]
[381995394,1756469442935,-294.6377317,0.00036523,30]
[381995396,1756469442945,-153.0,0.00036523,30]
[381995398,1756469442954,-153.0,0.00036523,30]
[381995400,1756469442963,-161.2295834,0.00036523,30]
[381995402,1756469442974,-294.6377317,0.00036523,30]
[381995404,1756469442983,-153.0,0.00036523,30]
[381995406,1756469442992,-153.0,0.00036523,30]
[381995408,1756469443003,-161.2295834,0.00036523,30]
[381995410,1756469443012,-153.0,0.00036523,30]
[381995412,1756469443021,-161.2295834,0.00036523,30]
[381995414,1756469443031,-153.0,0.00036523,30]
[381995416,1756469443041,-322.4591668,0.00036523,30]
[381995418,1756469443050,-155.7204829,0.00036523,30]
[381995420,1756469443059,-587.1238775,0.00036523,30]
[381995422,1756469443068,-1164.652766,0.00036523,30]
[381995424,1756469443077,-153.0,0.00036523,30]
[381995426,1756469443086,-904.27092076,0.00036556,2]
[381995428,1756469443095,-500.0,0.00036645,7]
[381995430,1756469443105,-500.0,0.00036725,7]
[381995432,1756469443114,-500.0,0.00036728,7]
[381995434,1756469443124,-163.37366008,0.0003681,2]
[381995436,1756469443133,-500.0,0.0003687,7]
[381995447,1756469443221,-196.26147968,0.0003689,3]
[381995449,1756469443232,-383.4,0.000369,7]
[381995451,1756469443241,-160.0,0.00037,30]
[381995453,1756469443251,-216.21406313,0.00037,3]
[381995455,1756469443261,-216.21406313,0.00037,30]
[381995457,1756469443270,-232.6790651,0.00037,3]
[381995459,1756469443280,-232.6790651,0.00037,30]
[381995461,1756469443289,-316.87303959,0.00037,30]
[381995463,1756469443298,-845.57753514,0.00037,30]
[381995465,1756469443307,-845.57753514,0.00037,7]
[381995467,1756469443317,-425.57542551,0.00037,30]
[381995469,1756469443327,-293.85068442,0.00037193,7]
[381995471,1756469443336,-834.18147,0.000372,120]
[381995473,1756469443345,-200.0,0.000372,120]
[381995475,1756469443354,-1362.18,0.000372,14]
[381995477,1756469443363,-500.0,0.00037262,7]
[381995479,1756469443373,-20494.9725898,0.00037462,2]
[381995481,1756469443382,-150.0,0.00037611,2]
[381995483,1756469443391,-638.85027099,0.00037612,2]
[381995485,1756469443401,-974.0,0.00037614,2]
[381995487,1756469443410,-2151.0,0.00037614,2]
[381995490,1756469443420,-632.943,0.00037614,2]
[381995492,1756469443429,-160.2,0.000379,7]
[381995494,1756469443438,-1000.0,0.00037964,2]
[381995496,1756469443447,-1000.0,0.00038,3]
[381995498,1756469443457,-154.0,0.000382,120]
[381995500,1756469443467,-500.0,0.00038236,7]
[381995502,1756469443476,-1451.23,0.00038356,120]
[381995504,1756469443486,-1465.63037263,0.00038667,2]
[381995506,1756469443495,-383.4,0.000389,7]
[381995508,1756469443504,-1451.23,0.00038904,120]
[381995510,1756469443514,-200.0,0.00038907,120]
[381995512,1756469443523,-4573.0465162,0.00038972,2]
[381995514,1756469443535,-216.21406313,0.00039,7]
[381995516,1756469443545,-500.0,0.000391,7]
[381995518,1756469443554,-834.18147,0.000392,120]
[381995520,1756469443563,-200.0,0.000392,120]
[381995522,1756469443573,-1362.18,0.000392,14]
[381995524,1756469443583,-1451.23,0.00039452,120]
[381995526,1756469443592,-180.972056,0.00039654,2]
[381995528,1756469443601,-500.0,0.00039746,7]
[381995530,1756469443611,-500.0,0.00039781,7]
[381995532,1756469443620,-647.0,0.000398,2]
[381995534,1756469443629,-500.0,0.00039897,7]
[381995536,1756469443639,-204.261286,0.000399,2]
[381995538,1756469443648,-501.56894266,0.00039996,15]
[381995540,1756469443657,-306.1512075,0.00039999,31]
[381995542,1756469443667,-500.0,0.0004,2]
[381995544,1756469443677,-214.30569527,0.0004,120]
[381995546,1756469443686,-423.68335477,0.0004,120]
[381995548,1756469443695,-217.30324474,0.0004,120]
[381995550,1756469443705,-160.2,0.0004,7]
[381995552,1756469443714,-216.21406313,0.0004,120]
[381995554,1756469443724,-1451.23,0.0004,120]
[381995556,1756469443733,-845.57753514,0.0004,120]
[381995558,1756469443742,-187.03883194,0.00040122,30]
[381995560,1756469443751,-168.24461977,0.00040411,30]
[381995562,1756469443760,-500.0,0.00040472,30]
[381995564,1756469443769,-1451.23,0.00040547,120]
[381995566,1756469443779,-500.0,0.00040594,30]
[381995568,1756469443788,-974.0,0.00040614,2]
[381995570,1756469443797,-2151.0,0.00040614,2]
[381995572,1756469443806,-632.0,0.00040614,2]
[381995574,1756469443815,-168.24461977,0.00040959,30]
[381995576,1756469443824,-180.0,0.00041,90]
[381995578,1756469443833,-225.0,0.00041,90]
[381995580,1756469443842,-500.0,0.00041032,30]
[381995582,1756469443851,-500.0,0.00041095,2]
[381995584,1756469443861,-500.0,0.00041095,2]
[381995586,1756469443870,-500.0,0.00041095,2]
[381995588,1756469443879,-500.0,0.00041095,2]
[381995590,1756469443888,-500.0,0.00041095,2]
[381995592,1756469443901,-500.0,0.00041095,2]
[381995594,1756469443910,-500.0,0.00041095,2]
[381995596,1756469443920,-500.0,0.00041095,2]
[381995598,1756469443929,-500.0,0.00041095,2]
[381995600,1756469443939,-500.0,0.00041095,2]
[381995602,1756469443948,-500.0,0.00041095,2]
[381995604,1756469443957,-500.0,0.00041095,2]
[381995606,1756469443967,-500.0,0.00041095,2]
[381995608,1756469443976,-500.0,0.00041095,2]
[381995610,1756469443985,-514.25674816,0.00041095,2]
[381995612,1756469443995,-1451.23,0.00041095,120]
[381995614,1756469444004,-862.98,0.00041096,120]
[381995616,1756469444014,-500.0,0.00041096,31]
[381995618,1756469444023,-500.0,0.00041096,31]
[381995620,1756469444032,-500.0,0.00041096,31]
[381995622,1756469444042,-500.0,0.00041096,31]
[381995624,1756469444051,-500.0,0.00041096,31]
[381995626,1756469444060,-500.0,0.00041096,31]
[381995628,1756469444070,-500.0,0.00041096,31]
[381995630,1756469444079,-500.0,0.00041096,31]
[381995632,1756469444088,-500.0,0.00041096,31]
[381995634,1756469444098,-500.0,0.00041096,31]
[381995636,1756469444107,-500.0,0.00041096,31]
[381995638,1756469444116,-500.0,0.00041096,31]
[381995640,1756469444126,-500.0,0.00041096,31]
[381995642,1756469444136,-500.0,0.00041096,31]
[381995644,1756469444145,-500.0,0.00041096,31]
[381995646,1756469444154,-216.85702931,0.00041096,31]
[381995648,1756469444164,-500.0,0.00041096,31]
[381995650,1756469444173,-500.0,0.00041096,31]
[381995652,1756469444182,-500.0,0.00041096,31]
[381995654,1756469444191,-500.0,0.00041096,31]
[381995656,1756469444200,-500.0,0.00041096,31]
[381995658,1756469444210,-500.0,0.00041096,31]
[381995660,1756469444219,-2606.4457804,0.00041175,2]
[381995662,1756469444228,-834.18147,0.000412,120]
[381995664,1756469444237,-234.18147,0.000412,120]
[381995666,1756469444247,-225.0,0.0004137,90]
[381995668,1756469444256,-168.24461977,0.00041479,30]
[381995670,1756469444265,-1451.23,0.00041643,120]
[381995672,1756469444274,-154.0,0.000417,120]
[381995674,1756469444284,-160.0,0.0004183,3]
[381995676,1756469444295,-168.24461977,0.00042027,30]
[381995678,1756469444304,-1451.23,0.00042191,120]
[381995680,1756469444313,-500.0,0.00042346,30]
[381995682,1756469444322,-162.6457,0.0004238,5]
[381995684,1756469444332,-152.802298,0.0004238,5]
[381995686,1756469444341,-160.0,0.00042426,4]
[381995688,1756469444350,-500.0,0.00042475,30]
[381995690,1756469444359,-500.0,0.00042531,30]
[381995692,1756469444368,-581.5766644,0.00042554,2]
[381995694,1756469444377,-168.24461977,0.00042575,30]
[381995696,1756469444387,-160.19,0.000426,14]
[381995698,1756469444397,-296.72,0.000426,7]
[381995700,1756469444406,-1451.23,0.00042739,120]
[381995702,1756469444415,-904.27092076,0.00042748,28]
[381995704,1756469444424,-500.0,0.00043009,30]
[381995706,1756469444433,-500.0,0.00043013,30]
[381995708,1756469444442,-160.0,0.00043023,5]
[381995710,1756469444451,-1203.58,0.000431,14]
[381995712,1756469444461,-225.0,0.00043151,90]
[381995714,1756469444470,-834.18147,0.000432,120]
[381995716,1756469444479,-1451.23,0.00043287,120]
[381995718,1756469444489,-382.80128,0.000434,120]
[381995720,1756469444499,-974.0,0.00043614,2]
[381995722,1756469444509,-625.747,0.00043614,2]
[381995724,1756469444518,-632.0,0.00043614,2]
[381995726,1756469444530,-160.0,0.0004362,6]
[381995728,1756469444540,-500.0,0.00043726,30]
[381995730,1756469444549,-1000.0,0.000438,90]
[381995732,1756469444559,-1451.23,0.00043835,120]
[381995734,1756469444567,-500.0,0.00044086,30]
[381995736,1756469444576,-361.96275663,0.000442,120]
[381995738,1756469444585,-160.0,0.00044216,7]
[381995740,1756469444594,-500.0,0.00044244,30]
[381995742,1756469444603,-1451.23,0.00044383,120]
[381995744,1756469444614,-200.0,0.00044512,120]
[381995746,1756469444623,-200.0,0.00044512,120]
[381995748,1756469444632,-160.19,0.000447,14]
[381995750,1756469444641,-296.72,0.000447,7]
[381995752,1756469444650,-160.0,0.00044813,8]
[381995754,1756469444659,-383.4,0.000449,7]
[381995756,1756469444669,-1451.23,0.00044931,120]
[381995758,1756469444679,-6925.38280607,0.00045,2]
[381995760,1756469444689,-200.23653274,0.00045,120]
[381995762,1756469444698,-198.13391488,0.00045,120]
[381995764,1756469444707,-1081.07874408,0.00045,120]
[381995766,1756469444716,-162.6457,0.00045165,2]
[381995768,1756469444725,-834.18147,0.000452,120]
[381995770,1756469444734,-500.0,0.00045253,30]
[381995772,1756469444743,-154.0,0.000453,120]
[381995774,1756469444752,-232.0,0.00045308,90]
[381995776,1756469444761,-160.0,0.00045409,9]
[381995778,1756469444771,-4095.68189522,0.00045443,5]
[381995780,1756469444780,-1451.23,0.00045479,120]
[381995782,1756469444789,-500.0,0.00045485,30]
[381995784,1756469444798,-1203.58,0.000455,14]
[381995786,1756469444808,-500.0,0.00045635,30]
[381995788,1756469444817,-347.51,0.00045635,7]
[381995790,1756469444826,-500.0,0.00045864,30]
[381995792,1756469444835,-160.0,0.00046006,10]
[381995794,1756469444845,-1451.23,0.00046027,120]
[381995796,1756469444854,-500.0,0.00046075,30]
[381995798,1756469444862,-1362.18,0.000461,14]
[381995800,1756469444871,-180.972056,0.00046143,2]
[381995802,1756469444880,-502.03135035,0.0004645,30]
[381995804,1756469444889,-153.0,0.00046452,30]
[381995806,1756469444898,-153.0,0.00046452,30]
[381995808,1756469444907,-153.0,0.00046452,30]
[381995810,1756469444916,-153.0,0.00046454,30]
[381995812,1756469444925,-153.0,0.00046454,30]
[381995814,1756469444934,-153.0,0.00046454,30]
[381995824,1756469445019,-153.0,0.00046464,30]
[381995826,1756469445029,-594.26584238,0.00046575,120]
[381995828,1756469445038,-480.0,0.00046575,120]
[381995830,1756469445047,-177.97833026,0.00046575,120]
[381995831,1756469445056,-344.6034292,0.00046575,120]
[381995832,1756469445065,-433.28953154,0.00046575,120]
[381995833,1756469445074,-480.0,0.00046575,120]
[381995834,1756469445083,-480.0,0.00046575,120]
[381995836,1756469445094,-480.0,0.00046575,120]
[381995838,1756469445103,-480.0,0.00046575,120]
[381995840,1756469445112,-480.0,0.00046575,120]
[381995842,1756469445121,-480.0,0.00046575,120]
[381995844,1756469445130,-480.0,0.00046575,120]
[381995846,1756469445139,-151.0,0.00046575,120]
[381995848,1756469445149,-480.0,0.00046575,120]
[381995850,1756469445158,-480.0,0.00046575,120]
[381995852,1756469445167,-480.0,0.00046575,120]
[381995854,1756469445176,-480.0,0.00046575,120]
[381995856,1756469445186,-480.0,0.00046575,120]
[381995858,1756469445196,-480.0,0.00046575,120]
[381995860,1756469445206,-480.0,0.00046575,120]
[381995862,1756469445215,-480.0,0.00046575,120]
[381995864,1756469445225,-480.0,0.00046575,120]
[381995866,1756469445234,-480.0,0.00046575,120]
[381995868,1756469445244,-480.0,0.00046575,120]
[381995870,1756469445254,-480.0,0.00046575,120]
[381995872,1756469445263,-480.0,0.00046575,120]
[381995874,1756469445272,-480.0,0.00046575,120]
[381995876,1756469445281,-322.06635949,0.00046575,120]
[381995878,1756469445291,-480.0,0.00046575,120]
[381995880,1756469445300,-480.0,0.00046575,120]
[381995882,1756469445309,-480.0,0.00046575,20]
[381995884,1756469445318,-480.0,0.00046575,120]
[381995886,1756469445328,-480.0,0.00046575,120]
[381995888,1756469445337,-480.0,0.00046575,120]
[381995890,1756469445347,-480.0,0.00046575,120]
[381995892,1756469445356,-480.0,0.00046575,120]
[381995894,1756469445366,-482.37291091,0.00046575,120]
[381995896,1756469445377,-484.23975532,0.00046575,120]
[381995898,1756469445386,-600.0,0.00046575,120]
[381995900,1756469445396,-626.54556458,0.00046575,120]
[381995902,1756469445405,-480.0,0.00046575,120]
[381995904,1756469445415,-480.0,0.00046575,120]
[381995906,1756469445425,-257.40755624,0.00046575,120]
[381995908,1756469445434,-480.0,0.00046575,120]
[381995910,1756469445443,-480.0,0.00046575,120]
[381995912,1756469445452,-480.0,0.00046575,120]
[381995914,1756469445462,-151.0,0.00046575,14]
[381995916,1756469445471,-480.0,0.00046575,120]
[381995918,1756469445480,-596.46369372,0.00046575,120]
[381995920,1756469445489,-480.0,0.00046575,120]
[381995922,1756469445499,-480.0,0.00046575,120]
[381995924,1756469445508,-480.0,0.00046575,120]
[381995926,1756469445517,-480.0,0.00046575,120]
[381995928,1756469445528,-481.78214374,0.00046575,120]
[381995930,1756469445540,-480.0,0.00046575,120]
[381995932,1756469445550,-480.0,0.00046575,120]
[381995934,1756469445559,-481.86281823,0.00046575,120]
[381995936,1756469445569,-483.37074782,0.00046575,120]
[381995938,1756469445580,-480.0,0.00046575,120]
[381995940,1756469445589,-480.0,0.00046575,120]
[381995942,1756469445598,-480.0,0.00046575,120]
[381995944,1756469445608,-482.63758881,0.00046575,120]
[381995946,1756469445617,-480.0,0.00046575,120]
[381995948,1756469445627,-480.0,0.00046575,120]
[381995950,1756469445638,-482.24198115,0.00046575,120]
[381995952,1756469445648,-480.0,0.00046575,120]
[381995954,1756469445657,-480.0,0.00046575,120]
[381995956,1756469445666,-480.0,0.00046575,120]
[381995958,1756469445676,-480.0,0.00046575,120]
[381995960,1756469445685,-480.0,0.00046575,120]
[381995962,1756469445695,-480.0,0.00046575,120]
[381995964,1756469445704,-480.0,0.00046575,120]
[381995966,1756469445714,-224.61763811,0.00046575,120]
[381995968,1756469445724,-480.0,0.00046575,120]
[381995970,1756469445733,-481.64893881,0.00046575,120]
[381995972,1756469445744,-480.0,0.00046575,120]
[381995975,1756469445754,-480.0,0.00046575,120]
[381995977,1756469445764,-480.0,0.00046575,120]
[381995978,1756469445773,-480.0,0.00046575,120]
[381995981,1756469445782,-485.2199376,0.00046575,120]
[381995983,1756469445791,-480.0,0.00046575,120]
[381995985,1756469445801,-480.0,0.00046575,120]
[381995987,1756469445810,-489.1185761,0.00046575,120]
[381995989,1756469445819,-480.0,0.00046575,120]
[381995991,1756469445828,-480.0,0.00046575,120]
[381995993,1756469445838,-480.0,0.00046575,120]
[381995995,1756469445847,-480.0,0.00046575,120]
[381995997,1756469445856,-480.0,0.00046575,120]
[381995999,1756469445865,-480.0,0.00046575,120]
[381996001,1756469445875,-480.0,0.00046575,120]
[381996003,1756469445884,-480.0,0.00046575,120]
[381996005,1756469445893,-500.0,0.00046575,120]
[381996007,1756469445902,-480.0,0.00046575,120]
[381996009,1756469445911,-500.0,0.00046575,120]
[381996011,1756469445920,-481.0284129,0.00046575,120]
[381996012,1756469445930,-480.0,0.00046575,120]
[381996014,1756469445939,-480.0,0.00046575,120]
[381996018,1756469445948,-480.0,0.00046575,120]
[381996020,1756469445957,-480.0,0.00046575,120]
[381996022,1756469445966,-480.0,0.00046575,120]
[381996024,1756469445976,-480.0,0.00046575,120]
[381996026,1756469445987,-480.0,0.00046575,120]
[381996028,1756469446204,-480.0,0.00046575,120]
[381996030,1756469446214,-480.0,0.00046575,120]
[381996032,1756469446223,-480.0,0.00046575,120]
[381996034,1756469446232,-480.0,0.00046575,120]
[381996036,1756469446241,-480.0,0.00046575,120]
[381996038,1756469446250,-480.0,0.00046575,120]
[381996040,1756469446260,-57.95352161,0.00046575,120]
[381996114,1756469446870,-430.7,0.00030415,10]
[381996116,1756469446880,-161.2295834,0.00035701,30]
[381996118,1756469446890,-294.6377317,0.00035701,30]
[381996120,1756469446899,-49.1116549,0.00046575,120]
[381996131,1756469447000,-174.91990477,0.000306,2]
[381996134,1756469447011,-174.91990476,0.00030745,2]
[381996136,1756469447022,-1208.6311419,0.00035701,30]
[381996138,1756469447032,-63.68340847,0.00046575,120]
[381996140,1756469447043,-367.20493663,0.00046575,120]
[381996142,1756469447053,-480.0,0.00046575,120]
[381996144,1756469447063,-480.0,0.00046575,120]
[381996146,1756469447072,-480.0,0.00046575,120]
[381996148,1756469447082,-370.44585829,0.00046575,120]
[381996150,1756469447095,-109.55414171,0.00046575,120]
[381996152,1756469447104,-480.0,0.00046575,120]
[381996154,1756469447113,-440.66007537,0.00046575,120]
[381996156,1756469447123,-480.0,0.00046575,120]
[381996158,1756469447134,-480.0,0.00046575,120]
[381996160,1756469447144,-480.0,0.00046575,120]
[381996162,1756469447153,-480.0,0.00046575,120]
[381996164,1756469447163,-480.0,0.00046575,120]
[381996166,1756469447172,-480.0,0.00046575,120]
[381996168,1756469447182,-391.93650073,0.00046575,120]
[381996170,1756469447194,-88.06349927,0.00046575,120]
[381996172,1756469447203,-480.0,0.00046575,120]
[381996174,1756469447212,-212.97550968,0.00046575,120]
[381996177,1756469447227,-174.91990476,0.0003089,2]
[381996179,1756469447236,-267.02449032,0.00046575,120]
[381996181,1756469447246,-480.0,0.00046575,30]
[381996183,1756469447255,-157.6535956,0.00046575,120]
[381996185,1756469447267,-322.3464044,0.00046575,120]
[381996187,1756469447276,-480.0,0.00046575,120]
[381996189,1756469447285,-169.6535956,0.00046575,120]
[382000942,1756469714104,-417.15472785,0.00028,10]
[382000943,1756469725481,160.089478,0.00013699,2]
[382000968,1756470429316,-402.10524529,0.00020768,2]
[382000969,1756470429337,-160.089478,0.00021404,2]
[382000970,1756470429359,-252.98063,0.00025415,2]
[382000971,1756470429382,-203.76658486,0.00025678,2]
[382000972,1756470429404,-162.443873,0.00025778,2]
[382000973,1756470429424,-162.443873,0.00026044,2]
[382000974,1756470429445,-232.6790651,0.00027078,2]
[382000975,1756470429467,-160.089478,0.0002911,2]
[382000976,1756470429486,-216.21406313,0.00029489,2]
[382000977,1756470429505,-215.84008374,0.00029516,2]
[382000978,1756470429524,-160.0,0.00030341,2]
[382000979,1756470429544,-160.0,0.00030341,2]
[382000980,1756470429564,-217.30324474,0.00030341,2]
[382000981,1756470429584,-425.57542551,0.00030347,2]
[382000982,1756470429604,-160.0,0.00030347,2]
[382000983,1756470429626,-302.61016811,0.00030359,2]
[382000987,1756470442087,-529.77114056,0.00027,7]
[382000988,1756470442107,-261.25227794,0.00028,10]
[382000989,1756470445073,-211.62916605,0.00028,10]
[382001004,1756470547496,357.0,0.00027397,120]
[382001005,1756470550102,-2818.17253065,0.000198,6]
[382001007,1756470551093,-2181.82746935,0.000198,6]
[382001008,1756470551112,-1628.58466568,0.0002,7]
[382001010,1756470560097,-153.664,0.0002,7]
[382001011,1756470564140,-1829.75133432,0.0002,7]
[382001012,1756470564160,-904.02557113,0.0002,2]
[382001013,1756470564183,-300.0,0.00021699,2]
[382001014,1756470564203,-613.03801579,0.000217,2]
[382001015,1756470564222,-355.35352368,0.00022,2]
[382001016,1756470564242,-192.92474915,0.000221,2]
[382001017,1756470564262,-279.06846716,0.000225,2]
[382001023,1756470606030,100.02906267,0.0002,7]
[382001044,1756470632428,-370.0,0.000198,6]
[382001045,1756470632474,-11.74179765,0.000198,6]
[382001046,1756470632484,-59.97093733,0.0002,7]
[382001047,1756470632494,-286.81356417,0.00024,2]
[382001622,1756470638417,-170.21309672,0.00024,2]
[382001624,1756470638427,-300.0,0.0002446,2]
[382001626,1756470638436,-1200.0,0.0002446,2]
[382001628,1756470638446,-11233.3169371,0.00024461,2]
[382001630,1756470638456,-793.58312571,0.0002455,2]
[382001632,1756470638465,-36799.97051191,0.0002465,2]
[382001635,1756470638480,-2273.60363247,0.0002465,2]
[382001637,1756470638490,-505.62482702,0.0002465,2]
[382001639,1756470638499,-17607.86903134,0.00025,2]
[382001641,1756470638508,-358.92,0.0002599,10]
[382001643,1756470638518,-299.1,0.0002599,10]
[382001645,1756470638532,-249.25,0.0002599,10]
[382001647,1756470638542,-28823.25634236,0.00026,30]
[382001649,1756470638551,-420.0,0.00026513,2]
[382001651,1756470638561,-1377.0,0.00026634,2]
[382001653,1756470638571,-160.0,0.00027145,2]
[382001655,1756470638580,-56.88969657,0.00028,10]
[382001657,1756470638590,-1000.0,0.00028,10]
[382001659,1756470638599,-587.0,0.00028738,2]
[382001660,1756470638609,-500.0,0.0002935,2]
[382001661,1756470638619,-425.57542551,0.00030355,2]
[382001662,1756470638628,-160.0,0.00030355,2]
[382001663,1756470638637,-845.57753514,0.00030358,2]
[382001664,1756470638647,-488.54345755,0.00030361,2]
[382001665,1756470638657,-1200.0,0.0003037,2]
[382001666,1756470638666,-156.3889533,0.0003046,2]
[382001667,1756470638676,-500.0,0.0003046,2]
[382001668,1756470638685,-280.25733717,0.0003046,2]
[382001669,1756470638696,-500.0,0.0003046,2]
[382001670,1756470638705,-160.74577554,0.0003046,2]
[382001673,1756470638714,-483.00725851,0.0003046,2]
[382001676,1756470638724,-499.5219876,0.0003046,2]
[382001679,1756470638733,-500.0,0.0003046,2]
[382001681,1756470638742,-500.0,0.0003046,2]
[382001683,1756470638752,-500.0,0.0003046,2]
[382001685,1756470638760,-481.72580259,0.0003046,2]
[382001687,1756470638769,-500.0,0.0003046,2]
[382001689,1756470638785,-500.0,0.0003046,2]
[382001694,1756470638916,-500.0,0.0003046,2]
[382001695,1756470638928,-52239.33569444,0.00030461,20]
[382001696,1756470638947,-778.82,0.00030461,20]
[382001697,1756470638962,-5707.34361763,0.00030461,20]
[382001698,1756470638973,-23312.48044269,0.00030461,20]
[382001699,1756470638985,-6799.13072085,0.00030461,20]
[382001700,1756470638996,-2764.78718293,0.00030461,20]
[382001701,1756470639008,-470.895,0.00030461,20]
[382001702,1756470639019,-1094.41,0.00030461,20]
[382001718,1756470639259,-16881.79109918,0.00030461,20]
[382002408,1756470646671,-78112.73749877,0.00030461,20]
[382002409,1756470646680,-300.0,0.00030461,2]
[382002411,1756470646690,-808.87436443,0.00030461,2]
[382002413,1756470646699,-254.52889285,0.00030461,2]
[382002415,1756470646709,-296.57384713,0.00030461,2]
[382002417,1756470646718,-326.67392264,0.00030461,2]
[382002419,1756470646727,-291.54868133,0.00030461,2]
[382002422,1756470646737,-636.58437177,0.00030461,2]
[382002424,1756470646747,-156.45845109,0.00030461,2]
[382002427,1756470646756,-157.467313,0.00030461,2]
[382002429,1756470646766,-507.0691128,0.00030461,2]
[382002431,1756470646775,-179.11653102,0.00030461,2]
[382002433,1756470646791,-467.37791021,0.00030461,2]
[382002435,1756470646801,-981.85615514,0.00030461,2]
[382002437,1756470646810,-188.97704558,0.00030461,2]
[382002439,1756470646819,-650.52895612,0.00030461,2]
[382002441,1756470646829,-903.5697069,0.00030461,2]
[382002442,1756470646838,-478.22999117,0.00030461,2]
[382002444,1756470646847,-163.13660562,0.00030461,2]
[382002446,1756470646857,-384.60678864,0.00030461,2]
[382002448,1756470646866,-201.25214817,0.00030461,2]
[382002450,1756470646876,-25097.30906587,0.00030461,2]
[382002451,1756470646886,-166.42925647,0.00030461,2]
[382002452,1756470646895,-150.18408949,0.00030461,2]
[382002454,1756470646905,-160.48845061,0.00030461,2]
[382002456,1756470646922,-2033.73842492,0.00030461,2]
[382002458,1756470646931,-258.26706545,0.00030461,2]
[382002460,1756470646942,-1000.0,0.00030462,60]
[382002461,1756470646951,-417.76,0.00030471,60]
[382002463,1756470646961,-785.51,0.000305,7]
[382002465,1756470646971,-152.52,0.000305,7]
[382002467,1756470646980,-187.27,0.000305,7]
[382002469,1756470646989,-793.58312571,0.00030691,2]
[382002470,1756470646999,-341.14960788,0.00030758,2]
[382002472,1756470647010,-1518.78417982,0.0003089,2]
[382002474,1756470647019,-643.310368,0.00030897,2]
[382002476,1756470647035,-6450.0,0.00031,120]
[382002478,1756470647044,-486.0,0.0003115,2]
[382002479,1756470647053,-500.0,0.00031788,7]
[382002481,1756470647063,-7979.7638224,0.00031968,2]
[382002483,1756470647071,-501.57012202,0.00032312,2]
[382002484,1756470647081,-177.823,0.00032873,33]
[382002486,1756470647091,-168.0,0.00033904,2]
[382002488,1756470647101,-1000.0,0.00034,120]
[382002490,1756470647111,-203.1492067,0.00034101,2]
[382002492,1756470647121,-500.0,0.00035057,7]
[382002494,1756470647131,-160.089478,0.00036815,2]
[382002495,1756470647141,-793.58312571,0.00036832,2]
[382002497,1756470647150,-785.51,0.000376,14]
[382002499,1756470647160,-187.27,0.000376,7]
[382002501,1756470647171,-735.16,0.00038449,2]
[382002503,1756470647180,-632.0,0.00038449,2]
[382002504,1756470647191,-424.85,0.00038449,2]
[382002506,1756470647200,-152.52,0.000385,7]
[382002508,1756470647210,-488.54345754,0.00039241,2]